Cogmind - Beta 17 @@@ ROGUE MODE // 2026.08.12 @ 15:54:03 Player: Blaj Result: Destroyed by 99-TNT with 99-TNT's Nukerbomber Performance ------------- Evolutions (1) 500 Regions Visited (5) 1000 Robots Destroyed (66) 330 Value Destroyed (1451) 1451 Prototype IDs (30) 600 Alien Tech Used (0) 0 Bonus (300) 300 TOTAL SCORE: 4181 Bonus ------- Aligned with FarCom 300 Cogmind --------- Core Integrity 0/400 Matter 215/300 Energy 94/100 System Corruption 0% Temperature Cool (0) Movement Core (50) Location -8/Mines Parts ------- > --- POWER (1) -------- (None) > --- PROPULSION (3) --- Light Treads > --- UTILITY (3) ------ Structural Scanner > --- WEAPON (2) ------- (None) > --- INVENTORY (5) ---- Heavy Ion Engine Sensor Array Medium Armor Plating Field Recycling Unit (32) Rocket Launcher Peak State ------------ > --- POWER ------------ Heavy Ion Engine > --- PROPULSION ------- Light Treads Light Treads Light Treads > --- UTILITY ---------- High-capacity Storage Unit Structural Scanner Cloak of Protection > --- WEAPON ----------- Improved Assault Rifle Improved Assault Rifle > --- INVENTORY -------- Improved Ion Engine Heavy Ion Engine Light Treads Light Treads Light Treads Light Treads High-capacity Storage Unit High-capacity Matter Pod Sensor Array Melee Analysis Suite ECM Suite Medium Armor Plating Medium Armor Plating Shield Generator Hacking Suite Field Recycling Unit EM Pulse Gun Rocket Launcher Mini Grenade Launcher Mining Laser [Rating: 25] Favorites ----------- Power Heavy Ion Engine Engine Heavy Ion Engine Propulsion Light Treads Treads Light Treads Leg Aluminum Leg Utility Seismic Detector Device Seismic Detector Storage High-capacity Storage Unit Processor Signal Interpreter Protection Improved Weapon Shielding Weapon Improved Assault Rifle Energy Gun Small Laser Ballistic Gun Improved Assault Rifle Ballistic Cannon Light Cannon Launcher Rocket Launcher Special Weapon Mining Laser Build | -11 -10 -9 -9 -9 -8 ------- Run | Yrd Mat Mat Min Exi Min Slots Evolved 2 | . . 2 . . . Power . | . . . . . . Propulsion 1 | . . 1 . . . Utility 1 | . . 1 . . . Weapon . | . . . . . . Parts Attached 49 | 1 13 27 6 2 . Power 5 | . 2 3 . . . Engine 5 | . 2 3 . . . Core . | . . . . . . Reactor . | . . . . . . Propulsion 12 | . 1 8 3 . . Treads 9 | . . 6 3 . . Leg 3 | . 1 2 . . . Wheel . | . . . . . . Hover . | . . . . . . Flight . | . . . . . . Utility 19 | 1 4 9 3 2 . Device 7 | 1 1 2 2 1 . Storage 4 | . 2 1 . 1 . Processor 1 | . 1 . . . . Hackware . | . . . . . . Protection 7 | . . 6 1 . . Artifact . | . . . . . . Weapon 13 | . 6 7 . . . Energy Gun 2 | . 2 . . . . Energy Cannon . | . . . . . . Ballistic Gun 5 | . . 5 . . . Ballistic Cannon 3 | . 3 . . . . Launcher 2 | . . 2 . . . Special Weapon 1 | . 1 . . . . Impact Weapon . | . . . . . . Slashing Weapon . | . . . . . . Piercing Weapon . | . . . . . . Special Melee Weapon . | . . . . . . Unidentified Prototypes 2 | . . 2 . . . Parts Lost 9 | . 1 4 . . 4 Power 1 | . . 1 . . . Propulsion 4 | . . 2 . . 2 Utility 2 | . . 1 . . 1 Weapon 2 | . 1 . . . 1 Highest Loss Streak 4 | . 1 3 . . 4 To Critical Strikes . | . . . . . . Average Backups 14 | 5 8 14 19 20 18 Power 1 | 1 . 1 2 2 1 Propulsion 2 | 3 1 1 3 4 3 Utility 7 | . 3 7 10 10 9 Weapon 3 | 1 2 3 4 4 3 Tool/Special . | . . . . . . Unused Backups 16 | . 7 3 . . 6 Power 5 | . 2 1 . . 2 Propulsion 8 | . 5 2 . . 1 Utility 3 | . . . . . 3 Weapon . | . . . . . . Tool/Special . | . . . . . . Average Slot Usage (%) 99 | . 99 98 100 99 100 Engine 11 | . 14 10 11 11 11 Treads 19 | . . 20 33 33 33 Leg 11 | . 28 12 . . . Device 14 | . 13 11 17 21 22 Storage 11 | . 14 11 11 11 11 Protection 4 | . . 10 4 . . Energy Gun 1 | . 5 . . . . Ballistic Gun 13 | . . 14 21 21 22 Ballistic Cannon 6 | . 17 5 . . . Special Weapon 1 | . 4 . . . . Peak Build Rating 25 | 7 8 21 21 25 18 Average Rating 14 | 6 7 16 18 17 17 On Entrance 13 | 6 7 8 20 18 19 Avg Prop Armor Cover (%) 23 | . . 5 . . 41 Naked Turns . | . . . . . . Heaviest Build 68 | 13 22 63 68 62 56 Greatest Support 60 | 20 20 60 60 60 60 Greatest Overweight (x) 2 | . 1 2 1 1 . Average Overweight (x) . | . . . . . . Largest Inventory Capacity 20 | 8 10 20 20 20 20 Average Capacity 15 | 8 8 16 20 20 18 Most Carried 20 | 6 10 20 20 20 20 Average Carried 14 | 5 8 14 19 20 18 Final Capacity 20 | 8 10 20 20 20 5 Final Carried 20 | 5 10 20 20 20 5 Class Distribution -------------------- 67% | Mutant 32% | Scavenger-Mutant Dominant Class ---------------- Mutant | -10/Materials Mutant | -9/Materials Scavenger-Mutant | -9/Mines Scavenger-Mutant | -9/Exiles Scavenger-Mutant | -8/Mines Resources | -11 -10 -9 -9 -9 -8 ----------- Run | Yrd Mat Mat Min Exi Min Matter Collected 2140 | 210 267 1178 485 . . Remotely . | . . . . . . Salvage Created 1882 | 139 218 1133 392 . . Parts 130 | 10 23 77 20 . . Haulers Intercepted 5 | . 1 4 . . . Recyclers Shooed 3 | . . 3 . . . Parts Field Recycled 21 | . . 21 . . . Retrieved Matter 314 | . . 314 . . . Parts Self-Destructed . | . . . . . . Prevented . | . . . . . . Parts Restored . | . . . . . . Kills | -11 -10 -9 -9 -9 -8 ------- Run | Yrd Mat Mat Min Exi Min Combat Hostiles Destroyed 43 | . 7 24 12 . . Guns 20 | . 1 10 9 . . Cannons 11 | . 4 7 . . . AOE 12 | . 2 7 3 . . Classes Destroyed 12 | 2 5 4 1 . . Worker 2 | . . 2 . . . Builder 2 | . 1 1 . . . Tunneler 3 | 3 . . . . . Hauler 5 | . 1 4 . . . Recycler 3 | 1 . 2 . . . Mechanic 1 | . . 1 . . . Operator 1 | . . 1 . . . Watcher 6 | . 3 3 . . . Swarmer 18 | . 3 11 4 . . Grunt 13 | . 4 4 5 . . Brawler 1 | . . . 1 . . Sentry 11 | . . 9 2 . . Best Kill Streak 6 | 4 3 6 6 . . Combat Bots Only 6 | . 3 6 6 . . Max Kills in Single Turn 4 | 1 2 4 2 . . Gunslinging . | . . . . . . Exploded 4 | . 2 4 2 . . Melee . | . . . . . . Uniques/NPCs Destroyed . | . . . . . . Combat | -11 -10 -9 -9 -9 -8 -------- Run | Yrd Mat Mat Min Exi Min Hostile Shots Fired 252 | . 22 167 47 . 16 Missed 59 | . 5 42 11 . 1 Hits 193 | . 17 125 36 . 15 Projectile 193 | . 17 125 36 . 15 AOE 11 | . . . . . 11 Critical Strikes 5 | . . 2 3 . . Actively Blocked 1 | . . 1 . . . Damage Taken 3106 | . 373 1617 393 . 723 Core 537 | . 111 206 49 . 171 Absorbed by Shields 30 | . . . 30 . . Redirected to Shielding 251 | . . 251 . . . Regen/Repaired (Parts) 194 | . . 194 . . . Core Remaining (%) 77 | 100 55 . . . . Volleys Fired 197 | 8 42 120 24 3 . Largest 2 | 2 2 2 2 1 . Hottest 140 | 80 140 100 46 33 . Shots Fired 346 | 16 70 211 46 3 . Gun 218 | 16 16 141 44 1 . Cannon 88 | . 34 54 . . . Launcher 7 | . . 3 2 2 . Special 33 | . 20 13 . . . Kinetic 274 | . 34 195 44 1 . Thermal 63 | 16 34 13 . . . Explosive 7 | . . 3 2 2 . Electromagnetic 2 | . 2 . . . . Robot Hit Streak 22 | 5 10 10 22 . . Robot Miss Streak 3 | 2 3 3 2 . . Penetration Max . | . . . . . . Secondary Targets 1 | . . . 1 . . Max Gunslinging Chain 1 | . . . 1 . . Shots Hit Robots 210 | 10 30 135 35 . . Core Hits 85 | 5 13 48 19 . . Critical Kills 1 | . . 1 . . . Critical Parts Destroyed 1 | . . 1 . . . Critical Strikes 8 | . 4 4 . . . Destroy 2 | . . 2 . . . Blast 6 | . 4 2 . . . Melee Attacks . | . . . . . . Impact . | . . . . . . Slashing . | . . . . . . Piercing . | . . . . . . Sneak Attacks . | . . . . . . Combat Hostiles . | . . . . . . Follow-up Attacks . | . . . . . . Damage Inflicted 4689 | 122 841 2919 807 . . Guns 2519 | 122 79 1786 532 . . Cannons 971 | . 432 539 . . . Explosions 1163 | . 330 572 261 . . Melee . | . . . . . . Ramming 36 | . . 22 14 . . Kinetic 3289 | . 432 2325 532 . . Thermal 564 | 122 361 81 . . . Explosive 752 | . . 491 261 . . Electromagnetic 48 | . 48 . . . . Impact . | . . . . . . Slashing . | . . . . . . Piercing . | . . . . . . Highest Corruption . | . . . . . . Average Corruption . | . . . . . . Corruption Purged . | . . . . . . Corruption Blocked . | . . . . . . Overload Shots . | . . . . . . Overflow Damage 224 | . 114 94 16 . . Projectiles . | . . . . . . Explosions 224 | . 114 94 16 . . Melee . | . . . . . . Knockbacks 17 | . 3 14 . . . Impact 1 | . . 1 . . . Kinetic 16 | . 3 13 . . . Secondary . | . . . . . . Self-Inflicted Damage 229 | . 180 43 6 . . Shots 4 | . 2 1 1 . . Rammed 7 | . . 6 1 . . Targets Rammed 8 | . . 7 1 . . Kicked . | . . . . . . Crushed 1 | . . 1 . . . Highest Temperature 220 | 72 220 72 20 . . Average Temperature 33 | 29 64 17 6 . . Received Heat Transfer 691 | . 84 435 172 . . Siege Activations . | . . . . . . Martial Activations . | . . . . . . Shielding Activations . | . . . . . . Robots Disrupted . | . . . . . . Combat Hostiles . | . . . . . . Robots Corrupted . | . . . . . . Combat Hostiles . | . . . . . . Parts Fried . | . . . . . . Impact Corruptions . | . . . . . . Robots Melted . | . . . . . . Combat Hostiles . | . . . . . . Parts Melted 2 | . 2 . . . . Heat Transferred 600 | 275 275 50 . . . Parts Sabotaged . | . . . . . . Parts Stolen . | . . . . . . Parts Stripped . | . . . . . . Power Chain Reactions 1 | . 1 . . . . Alert | -11 -10 -9 -9 -9 -8 ------- Run | Yrd Mat Mat Min Exi Min Maximum Alert Level 1 | . . 1 . . . Low Security (%) 87 | 100 100 72 100 . 100 Level 1 12 | . . 27 . . . Level 2 . | . . . . . . Level 3 . | . . . . . . Level 4 . | . . . . . . Level 5 . | . . . . . . High Security . | . . . . . . Max Security . | . . . . . . Peak Influence 251 | 10 119 251 162 . . Initial 55 | . . 2 55 . . Average 75 | 2 26 119 54 . . Influence Increases 1602 | 20 351 869 362 . . Destroy 0b10 Robot/C 860 | . 140 480 240 . . Destroy 0b10 Robot/NC 115 | 20 25 70 . . . Destroy Leader 212 | . 28 154 30 . . Successful Hack 50 | . 10 40 . . . Disable Machine 90 | . 45 45 . . . Destroy Structure 110 | . 43 50 17 . . Partial Spotted 15 | . . 15 . . . Lose Combat Pursuer 150 | . 60 15 75 . . Influence Decreases 1602 | 20 344 733 505 . . Entered New Map 93 | . . 5 88 . . Time Decay 1309 | 20 334 538 417 . . Lost Part 50 | . 10 40 . . . Purge Threat 150 | . . 150 . . . Squads Dispatched 1 | . . 1 . . . Investigation 1 | . . 1 . . . Extermination . | . . . . . . Reinforcement . | . . . . . . Assault . | . . . . . . Garrison . | . . . . . . Intercept . | . . . . . . Searches Triggered . | . . . . . . Construction Impeded . | . . . . . . Haulers Reinforced . | . . . . . . Active Scanning Responses . | . . . . . . Cargo Convoy Interrupts . | . . . . . . Stealth | -11 -10 -9 -9 -9 -8 --------- Run | Yrd Mat Mat Min Exi Min Distress Signals 1 | . . 1 . . . Communications Jammed . | . . . . . . Distress Signals . | . . . . . . Times Spotted 70 | . 15 38 16 . 1 Peak Tracking Total 9 | . 3 7 5 9 1 Tactical Retreats 10 | . 5 2 3 . . ECM-based Alert Blocks 6 | . 2 4 . . . Traps | -11 -10 -9 -9 -9 -8 ------- Run | Yrd Mat Mat Min Exi Min Traps Triggered . | . . . . . . Indirectly . | . . . . . . Trap Hack Attempts . | . . . . . . Triggered . | . . . . . . Disarmed . | . . . . . . Reprogrammed . | . . . . . . Reused . | . . . . . . Traps Extracted . | . . . . . . Installed . | . . . . . . Triggered . | . . . . . . Machines | -11 -10 -9 -9 -9 -8 ---------- Run | Yrd Mat Mat Min Exi Min Machines Disabled 10 | . 3 3 . 4 . Max in Single Turn 3 | . 2 1 . 3 . Machines Repaired . | . . . . . . Machines Dismantled . | . . . . . . Machines Sabotaged . | . . . . . . Overloaded Fab Kills . | . . . . . . Hacking | -11 -10 -9 -9 -9 -8 --------- Run | Yrd Mat Mat Min Exi Min Machines Accessed 23 | . 6 15 . 2 . Terminals 16 | . 5 11 . . . Fabricators . | . . . . . . Repair Stations 2 | . . 2 . . . Recycling Units 1 | . 1 . . . . Scanalyzers 2 | . . 2 . . . Garrison Access . | . . . . . . Total Hacks 85 | . 17 62 . 6 . Successful 59 | . 10 43 . 6 . Failed 25 | . 7 18 . . . Catastrophic 3 | . 1 2 . . . Database Lockouts 1 | . . 1 . . . Manual 24 | . 2 21 . 1 . Terminals 58 | . 15 43 . . . Fabricators . | . . . . . . Repair Stations 7 | . . 7 . . . Recycling Units 2 | . 2 . . . . Scanalyzers 12 | . . 12 . . . Garrison Access . | . . . . . . Terminal Hacks 37 | . 8 23 . 6 . Record 5 | . . . . 5 . Robot Analysis 1 | . 1 . . . . Prototype ID Bank 4 | . 1 3 . . . Branch Access Points 1 | . . 1 . . . Emergency Access Points 3 | . 1 2 . . . Terminal Index 1 | . . 1 . . . Alert Level 1 | . . 1 . . . Unreport Threat 1 | . . 1 . . . Locate Traps 7 | . 1 6 . . . Dispatch Records 4 | . 2 2 . . . Maintenance Status 1 | . . 1 . . . Security Status 1 | . . 1 . . . Transport Status 1 | . 1 . . . . Recall Investigation 1 | . . 1 . . . Hauler Manifests 2 | . 1 1 . . . Registered Components 1 | . . 1 . . . Zone Layout 1 | . . 1 . . . Proto ID Catalog 1 | . . . . 1 . Fabricator Hacks . | . . . . . . Repair Station Hacks 4 | . . 4 . . . Scan Component 2 | . . 2 . . . Repair 2 | . . 2 . . . Recycling Unit Hacks 1 | . 1 . . . . Retrieve Matter 1 | . 1 . . . . Scanalyzer 12 | . . 12 . . . Insert Component 5 | . . 5 . . . Analyze 5 | . . 5 . . . Retrieve Study 2 | . . 2 . . . Garrison Access Hacks . | . . . . . . Unauthorized Hacks 5 | . 1 4 . . . Terminals 4 | . . 4 . . . Botnet 3 | . . 3 . . . Operators 1 | . . 1 . . . Fabricators . | . . . . . . Repair Stations . | . . . . . . Recycling Units 1 | . 1 . . . . Recyclers 1 | . 1 . . . . Scanalyzers . | . . . . . . Garrison Access . | . . . . . . Data Cores Recovered . | . . . . . . Used . | . . . . . . Hacking Detections 16 | . 5 11 . . . Full Trace Events 4 | . 2 2 . . . Feedback Events . | . . . . . . Feedback Blocked . | . . . . . . Robot Schematics Acquired . | . . . . . . Robots Built . | . . . . . . Authchips . | . . . . . . Time . | . . . . . . Total Robot Build Rating . | . . . . . . Part Schematics Acquired 5 | . . 5 . . . Parts Built . | . . . . . . Authchips . | . . . . . . Time . | . . . . . . Total Part Build Rating . | . . . . . . Part Studies Acquired 2 | . . 2 . . . Parts Repaired 2 | . . 2 . . . Time 64 | . . 64 . . . Parts Recycled . | . . . . . . Recycled Matter . | . . . . . . Retrieved Matter . | . . . . . . Retrieved Components . | . . . . . . Parts Scanalyzed 5 | . . 5 . . . Part Schematics Acquired 5 | . . 5 . . . Parts Damaged . | . . . . . . Bothacking | -11 -10 -9 -9 -9 -8 ------------ Run | Yrd Mat Mat Min Exi Min Used RIF Installer . | . . . . . . Robots Hacked . | . . . . . . Non-combat . | . . . . . . Combat . | . . . . . . Robot Hacks Applied . | . . . . . . Relay Couplers Released . | . . . . . . Fabnet Peak Effective % . | . . . . . . Robots Rewired . | . . . . . . Allies Hacked . | . . . . . . Hacks Repelled . | . . . . . . Allies | -11 -10 -9 -9 -9 -8 -------- Run | Yrd Mat Mat Min Exi Min Total Allies . | . . . . . . Largest Group . | . . . . . . Highest-Rated Group . | . . . . . . Highest-Rated Ally . | . . . . . . Total Orders . | . . . . . . Ally Attacks . | . . . . . . Total Damage . | . . . . . . Kills . | . . . . . . Allies Corrupted . | . . . . . . Allies Melted . | . . . . . . Intel | -11 -10 -9 -9 -9 -8 ------- Run | Yrd Mat Mat Min Exi Min Active Infowar (turns) 5404 | 6 1430 2057 870 953 88 Sensors 90 | . . 90 . . . Structural 1730 | . . . 689 953 88 Seismic 5199 | 6 1386 1904 870 945 88 Cloaking 2 | . . . . 2 . ECM 204 | . 44 160 . . . Robot Analysis Total 1 | . 1 . . . . Derelict Logs Recovered 1 | . . . 1 . . Drone Launches . | . . . . . . Drone Recoveries . | . . . . . . Exploration | -11 -10 -9 -9 -9 -8 ------------- Run | Yrd Mat Mat Min Exi Min Turns Passed 6116 | 63 1474 2430 1108 953 88 Spaces Moved 3068 | 26 685 1167 562 585 43 Core 5 | . . . . . 5 Treads 1913 | . . 728 562 585 38 Legs 1150 | 26 685 439 . . . Wheels . | . . . . . . Hover . | . . . . . . Flight . | . . . . . . Fastest Speed 50 | 120 120 120 160 160 50 Average Speed 148 | 120 120 150 168 160 147 Slowest Speed 260 | 120 190 260 240 240 160 Overloaded Moves . | . . . . . . Propulsion Burnouts . | . . . . . . Robots Hopped . | . . . . . . Potential Cave-ins . | . . . . . . Cave-ins Triggered . | . . . . . . Exploration Rate (%) 64 | 4 97 96 98 80 14 Regions Visited 5 Branch Regions 3 Pre-discovered Areas 2 | . . . 1 1 . Known Exits Taken 1 | . . 1 . . . Unknown Exits Taken 4 | 1 1 . 1 1 . Scrap Searched 1 | . . . 1 . . Spaces Dug 13 | . 6 7 . . . Terrain Destroyed 137 | . 46 55 23 13 . Melee . | . . . . . . Projectile 27 | . 14 13 . . . AOE 110 | . 32 42 23 13 . Terrain Rammed . | . . . . . . Walls Destroyed . | . . . . . . Machines Disabled . | . . . . . . Actions | -11 -10 -9 -9 -9 -8 --------- Run | Yrd Mat Mat Min Exi Min Total 4207 | 42 1219 1611 669 598 68 Wait 758 | 5 451 222 59 . 21 Move 3063 | 25 684 1166 561 584 43 Hop . | . . . . . . Pick Up 30 | 1 11 17 1 . . Fast Attach 21 | 1 3 14 . 3 . Attach 8 | . 2 5 1 . . Detach 3 | . 2 1 . . . Swap 80 | . 16 41 18 4 1 Drop 39 | 2 8 18 4 4 3 Fire 197 | 8 42 120 24 3 . Melee . | . . . . . . Ram . | . . . . . . Kick . | . . . . . . Crush 8 | . . 7 1 . . Escape Stasis . | . . . . . . Rewire . | . . . . . . Trap . | . . . . . . Miscellaneous . | . . . . . . Route ------- -11/Scrapyard -10/Materials (discovered 5 exits: *Mat x3 / *Min / [*Sub]) -9/Materials (discovered 4 exits: [*Mat x3] / *Min) -9/Mines (discovered 3 exits: [*Mat x2] / *Exi) -9/Exiles (discovered 2 exits: [*Min x2]) -8/Mines History --------- Turn | Location | Event 1 | -11/Scrapyard | Discovered new exit (range 3) 64 | -11/Scrapyard | Entered Materials 185 | -10/Materials | Discovered new exit (range 6) 313 | -10/Materials | Build established: Mutant 324 | -10/Materials | Discovered new exit (range 14) 362 | -10/Materials | Identified exit to Mines 485 | -10/Materials | Discovered new exit (range 5) 788 | -10/Materials | Discovered new exit (range 16) 1025 | -10/Materials | Discovered new exit (range 10) 1538 | -10/Materials | Entered another Materials area 1538 | -9/Materials | Evolved 2 slots: Propulsion x1, Utility x1 1771 | -9/Materials | Discovered new exit (range 10) 2031 | -9/Materials | Repaired Lgt. Cannon 2175 | -9/Materials | Discovered new exit (range 5) 2212 | -9/Materials | Identified exit to Mines 2440 | -9/Materials | Lost 3 parts (2n1u) 2490 | -9/Materials | Discovered new exit (range 11) 2610 | -9/Materials | Repaired Imp. Weapon Shielding 2890 | -9/Materials | Central database locked down 3720 | -9/Materials | Core integrity fell below 50% 3968 | -9/Materials | Entered Mines 4346 | -9/Mines | Assembled infested the area 4351 | -9/Mines | Assisted by a Guerilla fighting off Assembled 4448 | -9/Mines | Learned location of Storage (-8) 4690 | -9/Mines | Discovered new exit (range 9) 4910 | -9/Mines | Build established: Scavenger-Mutant 4971 | -9/Mines | Discovered new exit (range 4) 5070 | -9/Mines | Deemed a non-threat by the Exiles lab entrance 5070 | -9/Mines | Discovered new exit (range 5) 5076 | -9/Mines | Entered Exiles 5104 | -9/Exiles | Discovered new exit (range 15) 5139 | -9/Exiles | Met 8R-AWN 5185 | -9/Exiles | Met EX-HEX 5224 | -9/Exiles | Met EX-DEC 5233 | -9/Exiles | Learned location of Zion (-7) 5383 | -9/Exiles | Visited The Gauntlet 5531 | -9/Exiles | Discovered new exit (range 12) 5646 | -9/Exiles | Met EX-BIN 5747 | -9/Exiles | Aligned with FarCom system 5748 | -9/Exiles | Given EX-Vault access code 5785 | -9/Exiles | Opened EX-Vault 5815 | -9/Exiles | Found Cloak of Protection 5999 | -9/Exiles | Attacked by the Exiles 6029 | -9/Exiles | Entered Mines 6110 | -8/Mines | 99-TNT came to Exiles' defense 6113 | -8/Mines | Core integrity fell below 20% 6117 | -8/Mines | Destroyed by 99-TNT with 99-TNT's Nukerbomber Last Messages --------------- perimeter. Defensive protocols time, folks! A strange signal echoes through the mines. LOCATION=UNKNOWN GOAL=ESCAPE 06030_ K-01 Serf collects debris. 06110_ 99-TNT: "I came as fast as I could... Wait, it was you!" 06110_ Dropped Hcp. Storage Unit. 06110_ T-07 Excavator destroyed. 06110_ Core Extractor disabled. 06112_ Imp. Assault Rifle destroyed. 06113_ The unstable cave ceiling collapses. 06113_ Dropped Hvy. Ion Engine. 06114_ The unstable cave ceiling collapses. 06114_ Dropped Imp. Assault Rifle. [Achievement: Physics Hates This One Trick] 06117_ The unstable cave ceiling collapses. 06117_ Lgt. Treads destroyed. 06117_ Seismic Detector destroyed. 06117_ Lgt. Treads destroyed. Map ----- +----------------------------------------------------+ | | | | | | | | | | | | | | | | | | | | | | | | | | | | | | | ???????????????????############??????????????????? | | ??????????????????######### # ###????????????????? | | ?????????????????#### # # #####??????????????? | | ?????????????????### # ###########???????? | | ????????????###?### ################# | | ??????????? # #### # ### ########## | | ??????????? ## # | | ??????????? ! # ########## | | ?????????? # s ########### | | ???????????## ! ####??????## | | ???????????## @ d ####???????## | | ???????????### ## ###????????## | | ????????????## ??? ## ###?????????## | | ??????????????????? # ####?????????## | | ??????????????????? ### ###### ####???????????? | | ??????????????????? t #### ####????????????? | | ????????????????????#####???########?????????????? | | ????????????????????#####????######??????????????? | | ?????????????????????????????????????????????????? | | ?????????????????????????????????????????????????? | | ?????????????????????????????????????????????????? | | ?????????????????????????????????????????????????? | | ?????????????????????????????????????????????????? | | ?????????????????????????????????????????????????? | | ?????????????????????????????????????????????????? | | ?????????????????????????????????????????????????? | | ?????????????????????????????????????????????????? | | ?????????????????????????????????????????????????? | | ?????????????????????????????????????????????????? | | ?????????????????????????????????????????????????? | | ?????????????????????????????????????????????????? | | ?????????????????????????????????????????????????? | | ?????????????????????????????????????????????????? | | ?????????????????????????????????????????????????? | | ?????????????????????????????????????????????????? | +----------------------------------------------------+ Best States ------------- Heat Dissipation 28 Energy Generation 14 Energy Capacity 280 Matter Stores 300 Matter Capacity 300 Sight Range 16 Robot Scan Range 14 Terrain Scan Density 10 ECM Strength 1 Armor Coverage 450 Weapon Shielding 66 Evasion (%) 55 Recoil Reduction 3 Item Schematics ----------------- Med. Armor Plating | -9/Materials | Scanalyzed Melee Analysis Suite | -9/Materials | Scanalyzed ECM Suite | -9/Materials | Scanalyzed Lgt. Treads | -9/Materials | Scanalyzed Hacking Suite | -9/Materials | Scanalyzed Robot Schematics ------------------ None Fabricated ------------ Nothing Repaired ---------- Lgt. Cannon | 6% | -9/Materials Imp. Weapon Shielding | 18% | -9/Materials Studied --------- Imp. Ion Engine | -9/Materials | Hacked Mni. Grenade Launcher | -9/Materials | Hacked Alien Tech Used ----------------- None Achievements -------------- Physics Hates This One Trick Sixth Sense Challenges ------------ None Game ------ Seed SegregatorSwordDesublimator Manual? 0 Play Time 01:13:32 Cumulative 265.3 hours Start 2026.08.10 @ 20:16:27 End 2026.08.12 @ 15:54:03 Sessions 4 Manual Loads 0 Difficulty Rogue Special Mode None Game No. 69 Rogue 69 Adventurer 0 Explorer 0 Win Type - Total 10 Types 5/0/2/0/1/1/0/1/0/0 Lore% 65 Gallery% 71 Achievement% 53 Wizard Run 0 Options --------- Layout 2 ASCII 0 Keyboard 1 Movement Vi Keybinds 0 Fullscreen 1 Font 24/Smallcaps Map View 50x44 Zoom Use 0% Tactical HUD 1 Map Filters NONE Filters NONE Steam 1 RUN: a6d210b1-0bd4-47f4-b2ff-176685164160